[Event "Titled Tuesday Blitz March 01 Early 2022"]
[White "Hoffmann, Asa"]
[Black "Gutenev, Alexander"]
[WhiteFideId "2001470"]
[BlackFideId "4195540"]
[WhiteElo "2117"]
[BlackElo "2403"]
[Result "0-1"]
[Round "01"]
[TimeControl "180+1"]
[Date "2022.03.01"]
[WhiteClock "0:00:46"]
[BlackClock "0:01:41"]

1. d4 {[%clk 0:02:54]}  b5 {[%clk 0:02:58]} 2. e4 {[%clk 0:02:51]}  Bb7 {[%clk 0:02:57]} 3. Bd3 {[%clk 0:02:51]}  Nf6 {[%clk 0:02:56]} 4. Qe2 {[%clk 0:02:50]}  b4 {[%clk 0:02:49]} 5. Nd2 {[%clk 0:02:49]}  e6 {[%clk 0:02:47]} 6. Ngf3 {[%clk 0:02:47]}  Be7 {[%clk 0:02:46]} 7. O-O {[%clk 0:02:46]}  O-O {[%clk 0:02:45]} 8. c4 {[%clk 0:02:42]}  bxc3 {[%clk 0:02:43]} 9. bxc3 {[%clk 0:02:42]}  c5 {[%clk 0:02:44]} 10. Rb1 {[%clk 0:02:40]}  Qc7 {[%clk 0:02:40]} 11. Ba3 {[%clk 0:02:36]}  d6 {[%clk 0:02:34]} 12. e5 {[%clk 0:02:25]}  Nd5 {[%clk 0:02:33]} 13. exd6 {[%clk 0:02:21]}  Bxd6 {[%clk 0:02:32]} 14. Qe4 {[%clk 0:02:13]}  g6 {[%clk 0:02:27]} 15. dxc5 {[%clk 0:02:01]}  Bf4 {[%clk 0:02:13]} 16. Nc4 {[%clk 0:01:31]}  Bc6 {[%clk 0:02:03]} 17. Nd4 {[%clk 0:01:26]}  Nxc3 {[%clk 0:02:01]} 18. Nxe6 {[%clk 0:01:04]}  Bxe4 {[%clk 0:01:54]} 19. Nxc7 {[%clk 0:01:04]}  Bxd3 {[%clk 0:01:50]} 20. Nxa8 {[%clk 0:00:58]}  Nxb1 {[%clk 0:01:50]} 21. Rd1 {[%clk 0:00:51]}  Bxc4 {[%clk 0:01:43]} 22. Rxb1 {[%clk 0:00:50]}  Nc6 {[%clk 0:01:42]} 23. g3 {[%clk 0:00:46]}  Be5 {[%clk 0:01:41]} 0-1


[Site "https://www.chess.com"]

[Event "Titled Tuesday Blitz March 01 Early 2022"]
[White "Horak, Martin"]
[Black "Mosadeghpour, Masoud"]
[WhiteFideId "367095"]
[BlackFideId "12519278"]
[WhiteElo "1997"]
[BlackElo "2395"]
[Result "0-1"]
[Round "01"]
[TimeControl "180+1"]
[Date "2022.03.01"]
[WhiteClock "0:00:17"]
[BlackClock "0:01:09"]

1. d4 {[%clk 0:02:53]}  Nf6 {[%clk 0:02:58]} 2. Bg5 {[%clk 0:02:53]}  d5 {[%clk 0:02:56]} 3. Bxf6 {[%clk 0:02:52]}  exf6 {[%clk 0:02:57]} 4. e3 {[%clk 0:02:53]}  Bd6 {[%clk 0:02:57]} 5. g3 {[%clk 0:02:53]}  O-O {[%clk 0:02:57]} 6. Bg2 {[%clk 0:02:53]}  c6 {[%clk 0:02:57]} 7. Ne2 {[%clk 0:02:53]}  Nd7 {[%clk 0:02:58]} 8. O-O {[%clk 0:02:52]}  f5 {[%clk 0:02:58]} 9. b3 {[%clk 0:02:50]}  Nf6 {[%clk 0:02:58]} 10. c4 {[%clk 0:02:49]}  dxc4 {[%clk 0:02:58]} 11. bxc4 {[%clk 0:02:50]}  h5 {[%clk 0:02:58]} 12. h4 {[%clk 0:02:43]}  g6 {[%clk 0:02:57]} 13. Nbc3 {[%clk 0:02:42]}  Re8 {[%clk 0:02:57]} 14. Rb1 {[%clk 0:02:42]}  a6 {[%clk 0:02:57]} 15. a4 {[%clk 0:02:34]}  Ng4 {[%clk 0:02:56]} 16. Qd3 {[%clk 0:02:22]}  Kg7 {[%clk 0:02:50]} 17. Nf4 {[%clk 0:02:17]}  Bc7 {[%clk 0:02:38]} 18. Rb2 {[%clk 0:02:13]}  Ba5 {[%clk 0:02:24]} 19. Rfb1 {[%clk 0:02:09]}  Ne5 {[%clk 0:02:21]} 20. dxe5 {[%clk 0:02:05]}  Qxd3 {[%clk 0:02:20]} 21. Nxd3 {[%clk 0:01:58]}  Bxc3 {[%clk 0:02:21]} 22. Rxb7 {[%clk 0:01:21]}  Bxb7 {[%clk 0:02:19]} 23. Rxb7 {[%clk 0:01:22]}  Red8 {[%clk 0:01:42]} 24. Nf4 {[%clk 0:01:03]}  Rd1+ {[%clk 0:01:40]} 25. Kh2 {[%clk 0:01:03]}  Bxe5 {[%clk 0:01:40]} 26. Bxc6 {[%clk 0:01:01]}  Rb8 {[%clk 0:01:23]} 27. Ra7 {[%clk 0:00:46]}  Bxf4 {[%clk 0:01:20]} 28. exf4 {[%clk 0:00:42]}  Rb2 {[%clk 0:01:20]} 29. Bd5 {[%clk 0:00:25]}  Rxf2+ {[%clk 0:01:19]} 30. Kh3 {[%clk 0:00:20]}  Rdd2 {[%clk 0:01:15]} 31. g4 {[%clk 0:00:17]}  Rd3+ {[%clk 0:01:09]} 0-1


[Site "https://www.chess.com"]

[Event "Titled Tuesday Blitz March 01 Early 2022"]
[White "Jumabayev, Rinat"]
[Black "Tillis., Bryan"]
[WhiteFideId "13702661"]
[BlackFideId "2059053"]
[WhiteElo "2561"]
[BlackElo "2480"]
[Result "1-0"]
[Round "01"]
[TimeControl "180+1"]
[Date "2022.03.01"]
[WhiteClock "0:00:06"]
[BlackClock "0:00:07"]

1. d4 {[%clk 0:03:00]}  d5 {[%clk 0:02:57]} 2. c4 {[%clk 0:02:58]}  e6 {[%clk 0:02:57]} 3. Nf3 {[%clk 0:02:57]}  Nf6 {[%clk 0:02:56]} 4. g3 {[%clk 0:02:56]}  g6 {[%clk 0:02:52]} 5. Bg2 {[%clk 0:02:56]}  Bg7 {[%clk 0:02:52]} 6. O-O {[%clk 0:02:56]}  O-O {[%clk 0:02:52]} 7. Qc2 {[%clk 0:02:56]}  Nc6 {[%clk 0:02:43]} 8. Rd1 {[%clk 0:02:51]}  Ne7 {[%clk 0:02:31]} 9. Nc3 {[%clk 0:02:49]}  c6 {[%clk 0:02:31]} 10. b3 {[%clk 0:02:46]}  b6 {[%clk 0:02:28]} 11. e4 {[%clk 0:02:43]}  dxe4 {[%clk 0:02:27]} 12. Nxe4 {[%clk 0:02:38]}  Nxe4 {[%clk 0:02:26]} 13. Qxe4 {[%clk 0:02:39]}  Bb7 {[%clk 0:02:27]} 14. h4 {[%clk 0:02:21]}  Qc8 {[%clk 0:02:06]} 15. Ng5 {[%clk 0:01:43]}  h6 {[%clk 0:01:50]} 16. Nh3 {[%clk 0:01:41]}  Rd8 {[%clk 0:01:46]} 17. h5 {[%clk 0:01:08]}  g5 {[%clk 0:01:38]} 18. Bxg5 {[%clk 0:00:41]}  hxg5 {[%clk 0:01:13]} 19. Nxg5 {[%clk 0:00:41]}  Nf5 {[%clk 0:01:02]} 20. g4 {[%clk 0:00:34]}  Nh6 {[%clk 0:00:48]} 21. Rd3 {[%clk 0:00:20]}  Rd7 {[%clk 0:00:47]} 22. Rad1 {[%clk 0:00:19]}  c5 {[%clk 0:00:48]} 23. d5 {[%clk 0:00:18]}  exd5 {[%clk 0:00:45]} 24. cxd5 {[%clk 0:00:19]}  Qd8 {[%clk 0:00:25]} 25. Qh7+ {[%clk 0:00:18]}  Kf8 {[%clk 0:00:25]} 26. Ne6+ {[%clk 0:00:07]}  fxe6 {[%clk 0:00:17]} 27. dxe6 {[%clk 0:00:08]}  Rxd3 {[%clk 0:00:17]} 28. Rxd3 {[%clk 0:00:08]}  Qxd3 {[%clk 0:00:14]} 29. Qxd3 {[%clk 0:00:07]}  Bxg2 {[%clk 0:00:11]} 30. Kxg2 {[%clk 0:00:06]}  Re8 {[%clk 0:00:11]} 31. Qg6 {[%clk 0:00:06]}  Re7 {[%clk 0:00:09]} 32. f4 {[%clk 0:00:06]}  Ng8 {[%clk 0:00:07]} 33. g5 {[%clk 0:00:06]} 1-0


[Site "https://www.chess.com"]

[Event "Titled Tuesday Blitz March 01 Early 2022"]
[White "Karavaeva, Olga"]
[Black "Horobetz, Graham"]
[WhiteFideId "4124111"]
[BlackFideId "2047322"]
[WhiteElo "2105"]
[BlackElo "2615"]
[Result "0-1"]
[Round "01"]
[TimeControl "180+1"]
[Date "2022.03.01"]
[WhiteClock "0:00:02"]
[BlackClock "0:00:09"]

1. c4 {[%clk 0:03:00]}  c5 {[%clk 0:02:59]} 2. Nc3 {[%clk 0:02:58]}  g6 {[%clk 0:02:59]} 3. g3 {[%clk 0:02:59]}  Bg7 {[%clk 0:02:59]} 4. Bg2 {[%clk 0:02:59]}  Nc6 {[%clk 0:03:00]} 5. Nf3 {[%clk 0:02:57]}  e5 {[%clk 0:02:59]} 6. O-O {[%clk 0:02:56]}  Nge7 {[%clk 0:03:00]} 7. Ne1 {[%clk 0:02:56]}  d6 {[%clk 0:03:00]} 8. Nc2 {[%clk 0:02:56]}  Be6 {[%clk 0:03:00]} 9. Ne3 {[%clk 0:02:56]}  Qd7 {[%clk 0:03:00]} 10. Re1 {[%clk 0:02:55]}  h5 {[%clk 0:02:59]} 11. h4 {[%clk 0:02:54]}  g5 {[%clk 0:02:58]} 12. hxg5 {[%clk 0:02:43]}  h4 {[%clk 0:02:58]} 13. g4 {[%clk 0:02:31]}  h3 {[%clk 0:02:50]} 14. Bf3 {[%clk 0:02:24]}  Nd4 {[%clk 0:02:50]} 15. d3 {[%clk 0:02:09]}  Ng6 {[%clk 0:02:49]} 16. Bd2 {[%clk 0:01:44]}  Nh4 {[%clk 0:02:45]} 17. Ne4 {[%clk 0:01:36]}  O-O-O {[%clk 0:01:52]} 18. b4 {[%clk 0:01:32]}  b6 {[%clk 0:01:37]} 19. a4 {[%clk 0:01:28]}  cxb4 {[%clk 0:00:26]} 20. Bxb4 {[%clk 0:01:14]}  Qe7 {[%clk 0:00:26]} 21. a5 {[%clk 0:01:11]}  b5 {[%clk 0:00:25]} 22. cxb5 {[%clk 0:01:10]}  f5 {[%clk 0:00:24]} 23. gxf6 {[%clk 0:01:09]}  Bxf6 {[%clk 0:00:23]} 24. b6 {[%clk 0:00:56]}  a6 {[%clk 0:00:22]} 25. Qc1+ {[%clk 0:00:43]}  Kb8 {[%clk 0:00:22]} 26. Qc7+ {[%clk 0:00:31]}  Qxc7 {[%clk 0:00:22]} 27. bxc7+ {[%clk 0:00:32]}  Kxc7 {[%clk 0:00:22]} 28. Nxf6 {[%clk 0:00:32]}  Nhxf3+ {[%clk 0:00:22]} 29. exf3 {[%clk 0:00:33]}  Nxf3+ {[%clk 0:00:23]} 30. Kh1 {[%clk 0:00:34]}  Nxe1 {[%clk 0:00:21]} 31. Rxe1 {[%clk 0:00:35]}  d5 {[%clk 0:00:14]} 32. Nfxd5+ {[%clk 0:00:30]}  Bxd5+ {[%clk 0:00:10]} 33. Nxd5+ {[%clk 0:00:27]}  Rxd5 {[%clk 0:00:11]} 34. Re3 {[%clk 0:00:27]}  Rh4 {[%clk 0:00:10]} 35. f3 {[%clk 0:00:24]}  Kd7 {[%clk 0:00:09]} 36. Kh2 {[%clk 0:00:23]}  Ke6 {[%clk 0:00:09]} 37. Be1 {[%clk 0:00:20]}  Rh7 {[%clk 0:00:09]} 38. f4 {[%clk 0:00:16]}  Rhd7 {[%clk 0:00:08]} 39. Bg3 {[%clk 0:00:12]}  Rxd3 {[%clk 0:00:08]} 40. Rxe5+ {[%clk 0:00:12]}  Kf7 {[%clk 0:00:08]} 41. Kxh3 {[%clk 0:00:12]}  Ra3 {[%clk 0:00:08]} 42. Kh4 {[%clk 0:00:11]}  Rdd3 {[%clk 0:00:07]} 43. Be1 {[%clk 0:00:11]}  Re3 {[%clk 0:00:07]} 44. Rf5+ {[%clk 0:00:08]}  Kg6 {[%clk 0:00:08]} 45. Rg5+ {[%clk 0:00:07]}  Kh6 {[%clk 0:00:08]} 46. Rh5+ {[%clk 0:00:06]}  Kg7 {[%clk 0:00:09]} 47. Bf2 {[%clk 0:00:03]}  Rh3+ {[%clk 0:00:08]} 48. Kg5 {[%clk 0:00:04]}  Rxh5+ {[%clk 0:00:08]} 49. Kxh5 {[%clk 0:00:03]}  Rxa5+ {[%clk 0:00:09]} 50. f5 {[%clk 0:00:02]}  Rd5 {[%clk 0:00:09]} 0-1


[Site "https://www.chess.com"]

[Event "Titled Tuesday Blitz March 01 Early 2022"]
[White "Kirillov, Dmitry"]
[Black "Mohammad Fahad, Rahman"]
[WhiteFideId "34180572"]
[BlackFideId "10207791"]
[WhiteElo "2076"]
[BlackElo "2323"]
[Result "0-1"]
[Round "01"]
[TimeControl "180+1"]
[Date "2022.03.01"]
[WhiteClock "0:00:29"]
[BlackClock "0:01:12"]

1. d4 {[%clk 0:03:00]}  Nf6 {[%clk 0:02:56]} 2. c4 {[%clk 0:03:00]}  e6 {[%clk 0:02:56]} 3. Nf3 {[%clk 0:03:00]}  d5 {[%clk 0:02:56]} 4. e3 {[%clk 0:02:58]}  Be7 {[%clk 0:02:52]} 5. b3 {[%clk 0:02:58]}  O-O {[%clk 0:02:51]} 6. Bd3 {[%clk 0:02:58]}  b6 {[%clk 0:02:51]} 7. O-O {[%clk 0:02:58]}  Bb7 {[%clk 0:02:51]} 8. Bb2 {[%clk 0:02:57]}  Nbd7 {[%clk 0:02:52]} 9. Nc3 {[%clk 0:02:56]}  c5 {[%clk 0:02:51]} 10. cxd5 {[%clk 0:02:56]}  Nxd5 {[%clk 0:02:43]} 11. Nxd5 {[%clk 0:02:56]}  Bxd5 {[%clk 0:02:43]} 12. Qe2 {[%clk 0:02:56]}  cxd4 {[%clk 0:02:34]} 13. Nxd4 {[%clk 0:02:55]}  Bf6 {[%clk 0:02:33]} 14. Rac1 {[%clk 0:02:53]}  Nc5 {[%clk 0:02:32]} 15. Bb1 {[%clk 0:02:42]}  Rc8 {[%clk 0:02:28]} 16. Rfd1 {[%clk 0:02:31]}  Qe7 {[%clk 0:02:28]} 17. e4 {[%clk 0:02:28]}  Bb7 {[%clk 0:02:22]} 18. g3 {[%clk 0:01:56]}  g6 {[%clk 0:02:06]} 19. e5 {[%clk 0:01:53]}  Bg7 {[%clk 0:02:02]} 20. Nb5 {[%clk 0:01:43]}  Ba6 {[%clk 0:01:58]} 21. Rd6 {[%clk 0:01:10]}  Nb7 {[%clk 0:01:31]} 22. Rdc6 {[%clk 0:00:48]}  Rxc6 {[%clk 0:01:18]} 23. Rxc6 {[%clk 0:00:48]}  Qd7 {[%clk 0:01:19]} 24. Rc7 {[%clk 0:00:36]}  Qxc7 {[%clk 0:01:17]} 25. Nxc7 {[%clk 0:00:32]}  Bxe2 {[%clk 0:01:18]} 26. Be4 {[%clk 0:00:30]}  Nc5 {[%clk 0:01:15]} 27. Bc6 {[%clk 0:00:29]}  Rc8 {[%clk 0:01:12]} 0-1


[Site "https://www.chess.com"]

[Event "Titled Tuesday Blitz March 01 Early 2022"]
[White "Kohler, Aran"]
[Black "Fus, Jakub"]
[WhiteFideId "1002856"]
[BlackFideId "1193023"]
[WhiteElo "2246"]
[BlackElo "2111"]
[Result "1/2-1/2"]
[Round "01"]
[TimeControl "180+1"]
[Date "2022.03.01"]
[WhiteClock "0:01:08"]
[BlackClock "0:00:32"]

1. d4 {[%clk 0:02:58]}  Nf6 {[%clk 0:02:59]} 2. Nf3 {[%clk 0:02:58]}  d5 {[%clk 0:02:58]} 3. Bg5 {[%clk 0:02:55]}  Ne4 {[%clk 0:02:58]} 4. Bf4 {[%clk 0:02:52]}  c5 {[%clk 0:02:58]} 5. e3 {[%clk 0:02:48]}  Nc6 {[%clk 0:02:57]} 6. c3 {[%clk 0:02:46]}  Qb6 {[%clk 0:02:57]} 7. Qb3 {[%clk 0:02:43]}  c4 {[%clk 0:02:57]} 8. Qxb6 {[%clk 0:02:39]}  axb6 {[%clk 0:02:58]} 9. Nbd2 {[%clk 0:02:39]}  Bf5 {[%clk 0:02:51]} 10. Nxe4 {[%clk 0:02:37]}  Bxe4 {[%clk 0:02:52]} 11. Nd2 {[%clk 0:02:37]}  Bg6 {[%clk 0:02:52]} 12. a3 {[%clk 0:02:37]}  b5 {[%clk 0:02:51]} 13. Rc1 {[%clk 0:02:36]}  e6 {[%clk 0:02:51]} 14. h4 {[%clk 0:02:33]}  h5 {[%clk 0:02:47]} 15. Be2 {[%clk 0:02:32]}  Kd7 {[%clk 0:02:47]} 16. O-O {[%clk 0:02:29]}  Be7 {[%clk 0:02:45]} 17. Bg3 {[%clk 0:02:28]}  f6 {[%clk 0:02:42]} 18. Bf3 {[%clk 0:02:21]}  Bd3 {[%clk 0:02:38]} 19. Rfe1 {[%clk 0:02:21]}  f5 {[%clk 0:02:38]} 20. Be2 {[%clk 0:02:19]}  Bxe2 {[%clk 0:02:29]} 21. Rxe2 {[%clk 0:02:19]}  g5 {[%clk 0:02:25]} 22. hxg5 {[%clk 0:02:16]}  Bxg5 {[%clk 0:02:26]} 23. Be5 {[%clk 0:02:15]}  Nxe5 {[%clk 0:02:24]} 24. dxe5 {[%clk 0:02:15]}  Rag8 {[%clk 0:02:17]} 25. f4 {[%clk 0:02:13]}  Be7 {[%clk 0:02:16]} 26. Nf3 {[%clk 0:02:12]}  Bc5 {[%clk 0:02:11]} 27. Kh2 {[%clk 0:02:08]}  Rg4 {[%clk 0:02:11]} 28. Rd1 {[%clk 0:02:00]}  h4 {[%clk 0:01:52]} 29. Nd4 {[%clk 0:01:58]}  Bxd4 {[%clk 0:01:51]} 30. Rxd4 {[%clk 0:01:56]}  Rg3 {[%clk 0:01:28]} 31. Kg1 {[%clk 0:01:45]}  h3 {[%clk 0:01:21]} 32. Rdd2 {[%clk 0:01:43]}  Ke7 {[%clk 0:01:15]} 33. Rd1 {[%clk 0:01:21]}  Kf7 {[%clk 0:01:10]} 34. Rdd2 {[%clk 0:01:21]}  hxg2 {[%clk 0:01:10]} 35. Rxg2 {[%clk 0:01:20]}  Rxe3 {[%clk 0:01:10]} 36. Rde2 {[%clk 0:01:19]}  Rhh3 {[%clk 0:01:09]} 37. Rxe3 {[%clk 0:01:17]}  Rxe3 {[%clk 0:01:10]} 38. Kf2 {[%clk 0:01:17]}  Rh3 {[%clk 0:01:10]} 39. Rg5 {[%clk 0:01:12]}  Rh2+ {[%clk 0:01:08]} 40. Rg2 {[%clk 0:01:11]}  Rxg2+ {[%clk 0:01:05]} 41. Kxg2 {[%clk 0:01:11]}  Ke7 {[%clk 0:01:05]} 42. Kg3 {[%clk 0:01:10]}  Kf7 {[%clk 0:00:39]} 43. Kh4 {[%clk 0:01:08]}  Kg6 {[%clk 0:00:39]} 44. Kg3 {[%clk 0:01:07]}  Kh5 {[%clk 0:00:39]} 45. Kh3 {[%clk 0:01:07]}  Kh6 {[%clk 0:00:37]} 46. Kh4 {[%clk 0:01:07]}  Kg6 {[%clk 0:00:38]} 47. Kg3 {[%clk 0:01:07]}  Kh5 {[%clk 0:00:36]} 48. Kh3 {[%clk 0:01:07]}  Kg6 {[%clk 0:00:32]} 49. Kh4 {[%clk 0:01:08]}  Kh6 {[%clk 0:00:32]} 50. Kg3 {[%clk 0:01:08]}  Kh5 {[%clk 0:00:32]} 1/2-1/2


[Site "https://www.chess.com"]

[Event "Titled Tuesday Blitz March 01 Early 2022"]
[White "Kollars, Dmitrij"]
[Black "Suder, Jakub"]
[WhiteFideId "12909572"]
[BlackFideId "1195310"]
[WhiteElo "2584"]
[BlackElo "2058"]
[Result "1-0"]
[Round "01"]
[TimeControl "180+1"]
[Date "2022.03.01"]
[WhiteClock "0:00:33"]
[BlackClock "0:00:16"]

1. c4 {[%clk 0:03:00]}  e6 {[%clk 0:02:59]} 2. Nf3 {[%clk 0:02:59]}  d5 {[%clk 0:02:52]} 3. g3 {[%clk 0:02:57]}  Nf6 {[%clk 0:02:50]} 4. Bg2 {[%clk 0:02:56]}  Be7 {[%clk 0:02:49]} 5. O-O {[%clk 0:02:56]}  O-O {[%clk 0:02:49]} 6. b3 {[%clk 0:02:56]}  b6 {[%clk 0:02:49]} 7. Bb2 {[%clk 0:02:56]}  Bb7 {[%clk 0:02:49]} 8. cxd5 {[%clk 0:02:54]}  Bxd5 {[%clk 0:02:37]} 9. d4 {[%clk 0:02:42]}  c5 {[%clk 0:02:28]} 10. Nc3 {[%clk 0:02:37]}  Bb7 {[%clk 0:02:25]} 11. dxc5 {[%clk 0:02:35]}  Bxc5 {[%clk 0:02:23]} 12. a3 {[%clk 0:02:30]}  a5 {[%clk 0:02:12]} 13. Na4 {[%clk 0:02:10]}  Nbd7 {[%clk 0:01:56]} 14. Nxc5 {[%clk 0:02:08]}  Nxc5 {[%clk 0:01:55]} 15. Bd4 {[%clk 0:02:01]}  Rc8 {[%clk 0:01:51]} 16. b4 {[%clk 0:02:00]}  axb4 {[%clk 0:01:44]} 17. axb4 {[%clk 0:02:01]}  Nce4 {[%clk 0:01:41]} 18. Qb3 {[%clk 0:01:36]}  b5 {[%clk 0:01:32]} 19. Qb2 {[%clk 0:01:28]}  Qe7 {[%clk 0:01:20]} 20. Ra7 {[%clk 0:01:27]}  Ra8 {[%clk 0:01:18]} 21. Rfa1 {[%clk 0:01:10]}  Rxa7 {[%clk 0:01:16]} 22. Rxa7 {[%clk 0:01:11]}  Ra8 {[%clk 0:01:10]} 23. Rxa8+ {[%clk 0:00:50]}  Bxa8 {[%clk 0:01:10]} 24. Ng5 {[%clk 0:00:51]}  Qf8 {[%clk 0:00:29]} 25. Nxe4 {[%clk 0:00:33]}  Nxe4 {[%clk 0:00:28]} 26. f3 {[%clk 0:00:33]}  Nd6 {[%clk 0:00:19]} 27. Bc5 {[%clk 0:00:33]}  Qb8 {[%clk 0:00:16]} 28. Qe5 {[%clk 0:00:33]} 1-0


[Site "https://www.chess.com"]

[Event "Titled Tuesday Blitz March 01 Early 2022"]
[White "Kosakowski, Jakub"]
[Black "Sinitsina, Anastassia"]
[WhiteFideId "1185080"]
[BlackFideId "4504640"]
[WhiteElo "2476"]
[BlackElo "2144"]
[Result "1-0"]
[Round "01"]
[TimeControl "180+1"]
[Date "2022.03.01"]
[WhiteClock "0:01:55"]
[BlackClock "0:01:10"]

1. d4 {[%clk 0:02:53]}  Nf6 {[%clk 0:02:57]} 2. c4 {[%clk 0:02:52]}  g6 {[%clk 0:02:56]} 3. Nf3 {[%clk 0:02:50]}  Bg7 {[%clk 0:02:56]} 4. g3 {[%clk 0:02:50]}  O-O {[%clk 0:02:56]} 5. Bg2 {[%clk 0:02:45]}  d6 {[%clk 0:02:53]} 6. O-O {[%clk 0:02:45]}  Nbd7 {[%clk 0:02:51]} 7. Nc3 {[%clk 0:02:45]}  e5 {[%clk 0:02:51]} 8. e4 {[%clk 0:02:45]}  Re8 {[%clk 0:02:50]} 9. Re1 {[%clk 0:02:45]}  c6 {[%clk 0:02:49]} 10. h3 {[%clk 0:02:41]}  Qc7 {[%clk 0:02:49]} 11. Be3 {[%clk 0:02:23]}  a6 {[%clk 0:02:44]} 12. Qc2 {[%clk 0:02:21]}  h6 {[%clk 0:02:34]} 13. Rad1 {[%clk 0:02:20]}  Qb8 {[%clk 0:02:16]} 14. b4 {[%clk 0:02:13]}  b5 {[%clk 0:02:15]} 15. c5 {[%clk 0:02:07]}  exd4 {[%clk 0:02:12]} 16. Nxd4 {[%clk 0:02:03]}  dxc5 {[%clk 0:02:10]} 17. Nxc6 {[%clk 0:02:03]}  Qc7 {[%clk 0:02:07]} 18. e5 {[%clk 0:02:03]}  Bb7 {[%clk 0:01:28]} 19. exf6 {[%clk 0:01:58]}  Nxf6 {[%clk 0:01:27]} 20. Bf4 {[%clk 0:01:58]}  Qb6 {[%clk 0:01:10]} 21. Ne7+ {[%clk 0:01:55]} 1-0


[Site "https://www.chess.com"]

[Event "Titled Tuesday Blitz March 01 Early 2022"]
[White "Kostiukov, Alexandr"]
[Black "Brodowski, Piotr"]
[WhiteFideId "14108100"]
[BlackFideId "1124480"]
[WhiteElo "2202"]
[BlackElo "2422"]
[Result "0-1"]
[Round "01"]
[TimeControl "180+1"]
[Date "2022.03.01"]
[WhiteClock "0:00:13"]
[BlackClock "0:00:55"]

1. g3 {[%clk 0:02:56]}  d5 {[%clk 0:02:58]} 2. Bg2 {[%clk 0:02:56]}  Nf6 {[%clk 0:02:58]} 3. d3 {[%clk 0:02:55]}  g6 {[%clk 0:02:57]} 4. e4 {[%clk 0:02:55]}  Bg7 {[%clk 0:02:57]} 5. e5 {[%clk 0:02:54]}  Nfd7 {[%clk 0:02:56]} 6. f4 {[%clk 0:02:54]}  O-O {[%clk 0:02:46]} 7. Nf3 {[%clk 0:02:54]}  c5 {[%clk 0:02:45]} 8. c4 {[%clk 0:02:47]}  dxc4 {[%clk 0:02:41]} 9. dxc4 {[%clk 0:02:48]}  Nc6 {[%clk 0:02:42]} 10. Nc3 {[%clk 0:02:47]}  Nb6 {[%clk 0:02:41]} 11. Qe2 {[%clk 0:02:46]}  Bg4 {[%clk 0:02:38]} 12. Be3 {[%clk 0:02:41]}  Nd4 {[%clk 0:02:38]} 13. Bxd4 {[%clk 0:02:27]}  cxd4 {[%clk 0:02:37]} 14. Nd5 {[%clk 0:02:19]}  Nxd5 {[%clk 0:02:28]} 15. cxd5 {[%clk 0:02:20]}  Qxd5 {[%clk 0:02:23]} 16. O-O {[%clk 0:02:16]}  Rad8 {[%clk 0:02:14]} 17. Rad1 {[%clk 0:02:14]}  Qc5 {[%clk 0:02:10]} 18. Qf2 {[%clk 0:02:09]}  Bxf3 {[%clk 0:01:58]} 19. Bxf3 {[%clk 0:02:07]}  b6 {[%clk 0:01:57]} 20. Rd2 {[%clk 0:02:04]}  f6 {[%clk 0:01:56]} 21. exf6 {[%clk 0:02:01]}  Bxf6 {[%clk 0:01:52]} 22. Rfd1 {[%clk 0:01:57]}  Kg7 {[%clk 0:01:42]} 23. Be4 {[%clk 0:01:50]}  Rc8 {[%clk 0:01:32]} 24. Bd3 {[%clk 0:01:47]}  e5 {[%clk 0:01:21]} 25. f5 {[%clk 0:01:32]}  Bg5 {[%clk 0:01:18]} 26. Re2 {[%clk 0:01:28]}  Be3 {[%clk 0:01:15]} 27. Rxe3 {[%clk 0:01:23]}  dxe3 {[%clk 0:01:15]} 28. Qe2 {[%clk 0:01:22]}  gxf5 {[%clk 0:01:14]} 29. b3 {[%clk 0:01:00]}  Rcd8 {[%clk 0:01:06]} 30. Rf1 {[%clk 0:00:51]}  e4 {[%clk 0:01:03]} 31. Bc4 {[%clk 0:00:43]}  Rd2 {[%clk 0:00:59]} 32. Qh5 {[%clk 0:00:41]}  e2+ {[%clk 0:00:58]} 33. Kh1 {[%clk 0:00:12]}  exf1=Q+ {[%clk 0:00:57]} 34. Bxf1 {[%clk 0:00:13]}  Qe3 {[%clk 0:00:55]} 0-1


[Site "https://www.chess.com"]

[Event "Titled Tuesday Blitz March 01 Early 2022"]
[White "Kozusek, Daniel"]
[Black "Silva, Mariana Sofia T."]
[WhiteFideId "349500"]
[BlackFideId "1911899"]
[WhiteElo "2206"]
[BlackElo "1825"]
[Result "1-0"]
[Round "01"]
[TimeControl "180+1"]
[Date "2022.03.01"]
[WhiteClock "0:00:18"]
[BlackClock "0:00:20"]

1. d4 {[%clk 0:02:59]}  Nf6 {[%clk 0:02:55]} 2. Nf3 {[%clk 0:02:56]}  e6 {[%clk 0:02:51]} 3. Bf4 {[%clk 0:02:54]}  d5 {[%clk 0:02:49]} 4. e3 {[%clk 0:02:55]}  c5 {[%clk 0:02:47]} 5. Nbd2 {[%clk 0:02:54]}  Nc6 {[%clk 0:02:45]} 6. c3 {[%clk 0:02:54]}  Bd6 {[%clk 0:02:40]} 7. Bg3 {[%clk 0:02:53]}  O-O {[%clk 0:02:38]} 8. Bd3 {[%clk 0:02:44]}  c4 {[%clk 0:02:14]} 9. Bc2 {[%clk 0:02:43]}  b5 {[%clk 0:02:13]} 10. e4 {[%clk 0:02:43]}  dxe4 {[%clk 0:02:08]} 11. Nxe4 {[%clk 0:02:34]}  Nxe4 {[%clk 0:02:08]} 12. Bxe4 {[%clk 0:02:35]}  Bb7 {[%clk 0:02:07]} 13. Bc2 {[%clk 0:02:22]}  b4 {[%clk 0:01:54]} 14. Qe2 {[%clk 0:02:16]}  bxc3 {[%clk 0:01:46]} 15. bxc3 {[%clk 0:02:17]}  Rc8 {[%clk 0:01:39]} 16. Rb1 {[%clk 0:02:12]}  Ba8 {[%clk 0:01:37]} 17. O-O {[%clk 0:02:01]}  Ne7 {[%clk 0:01:31]} 18. Bxh7+ {[%clk 0:01:48]}  Kxh7 {[%clk 0:01:28]} 19. Ng5+ {[%clk 0:01:48]}  Kg6 {[%clk 0:01:19]} 20. h4 {[%clk 0:01:43]}  Bxg3 {[%clk 0:01:04]} 21. fxg3 {[%clk 0:01:43]}  Qd5 {[%clk 0:00:58]} 22. Qc2+ {[%clk 0:01:26]}  Nf5 {[%clk 0:00:50]} 23. g4 {[%clk 0:01:25]}  Qxg2+ {[%clk 0:00:49]} 24. Qxg2 {[%clk 0:01:25]}  Bxg2 {[%clk 0:00:49]} 25. gxf5+ {[%clk 0:01:26]}  exf5 {[%clk 0:00:49]} 26. Kxg2 {[%clk 0:01:26]}  Rfe8 {[%clk 0:00:47]} 27. Rf2 {[%clk 0:01:23]}  Re3 {[%clk 0:00:46]} 28. Rb7 {[%clk 0:01:12]}  f6 {[%clk 0:00:43]} 29. Nh3 {[%clk 0:01:13]}  Rxc3 {[%clk 0:00:39]} 30. Kh2 {[%clk 0:01:13]}  Re8 {[%clk 0:00:38]} 31. Rg2+ {[%clk 0:01:13]}  Kh6 {[%clk 0:00:38]} 32. Rbxg7 {[%clk 0:01:11]}  Re4 {[%clk 0:00:30]} 33. Rg8 {[%clk 0:00:47]}  Kh7 {[%clk 0:00:24]} 34. R8g7+ {[%clk 0:00:41]}  Kh6 {[%clk 0:00:24]} 35. R7g6+ {[%clk 0:00:42]}  Kh7 {[%clk 0:00:23]} 36. Rxf6 {[%clk 0:00:25]}  Rxh4 {[%clk 0:00:23]} 37. Rg3 {[%clk 0:00:26]}  Rc2+ {[%clk 0:00:22]} 38. Kg1 {[%clk 0:00:25]}  Rxa2 {[%clk 0:00:22]} 39. Ng5+ {[%clk 0:00:22]}  Kh8 {[%clk 0:00:22]} 40. Rf8+ {[%clk 0:00:18]}  Kg7 {[%clk 0:00:21]} 41. Ne6+ {[%clk 0:00:19]}  Kh6 {[%clk 0:00:20]} 42. Rh8# {[%clk 0:00:18]} 1-0


[Site "https://www.chess.com"]